[Event "Titled Tuesday Blitz November 29 Late 2022"]
[White "Besedes, Danilo"]
[Black "Remizov, Yaroslav"]
[WhiteFideId "946796"]
[BlackFideId "34134015"]
[WhiteElo "2352"]
[BlackElo "2414"]
[Result "1-0"]
[Round "01"]
[TimeControl "180+1"]
[Date "2022.11.30"]
[WhiteClock "0:00:59"]
[BlackClock "0:00:01"]

1. Nf3 {[%clk 0:02:59]}  Nf6 {[%clk 0:02:58]} 2. e3 {[%clk 0:02:59]}  b6 {[%clk 0:02:53]} 3. d4 {[%clk 0:02:58]}  Bb7 {[%clk 0:02:52]} 4. Bd3 {[%clk 0:02:59]}  e6 {[%clk 0:02:51]} 5. O-O {[%clk 0:02:59]}  Be7 {[%clk 0:02:50]} 6. b3 {[%clk 0:03:00]}  c5 {[%clk 0:02:48]} 7. Bb2 {[%clk 0:03:00]}  cxd4 {[%clk 0:02:48]} 8. exd4 {[%clk 0:03:00]}  O-O {[%clk 0:02:48]} 9. Nbd2 {[%clk 0:03:00]}  Nc6 {[%clk 0:02:39]} 10. a3 {[%clk 0:02:59]}  Rc8 {[%clk 0:02:35]} 11. Re1 {[%clk 0:02:59]}  h6 {[%clk 0:02:33]} 12. c4 {[%clk 0:02:57]}  d5 {[%clk 0:02:32]} 13. Qe2 {[%clk 0:02:48]}  Na5 {[%clk 0:02:17]} 14. Ne5 {[%clk 0:02:42]}  Nd7 {[%clk 0:02:15]} 15. Nxd7 {[%clk 0:02:33]}  Qxd7 {[%clk 0:02:14]} 16. c5 {[%clk 0:02:28]}  bxc5 {[%clk 0:01:44]} 17. dxc5 {[%clk 0:02:29]}  Bg5 {[%clk 0:01:14]} 18. b4 {[%clk 0:02:18]}  Nc6 {[%clk 0:01:06]} 19. Nf3 {[%clk 0:02:16]}  Be7 {[%clk 0:00:34]} 20. Rad1 {[%clk 0:02:05]}  Nd8 {[%clk 0:00:19]} 21. Ne5 {[%clk 0:01:56]}  Qc7 {[%clk 0:00:19]} 22. Ng4 {[%clk 0:01:48]}  f5 {[%clk 0:00:17]} 23. Ne5 {[%clk 0:01:36]}  Bf6 {[%clk 0:00:17]} 24. f4 {[%clk 0:01:21]}  a5 {[%clk 0:00:16]} 25. Bd4 {[%clk 0:01:14]}  axb4 {[%clk 0:00:16]} 26. axb4 {[%clk 0:01:15]}  Kh7 {[%clk 0:00:13]} 27. b5 {[%clk 0:01:13]}  Qa5 {[%clk 0:00:08]} 28. c6 {[%clk 0:01:11]}  Qb4 {[%clk 0:00:04]} 29. Qf2 {[%clk 0:01:08]}  Ba8 {[%clk 0:00:04]} 30. Bc5 {[%clk 0:01:08]}  Qa4 {[%clk 0:00:02]} 31. Bxf8 {[%clk 0:01:08]}  Bxe5 {[%clk 0:00:02]} 32. fxe5 {[%clk 0:01:07]}  Nxc6 {[%clk 0:00:03]} 33. bxc6 {[%clk 0:01:07]}  Rxf8 {[%clk 0:00:03]} 34. c7 {[%clk 0:01:03]}  Qd7 {[%clk 0:00:03]} 35. Rc1 {[%clk 0:01:03]}  d4 {[%clk 0:00:02]} 36. Ba6 {[%clk 0:01:02]}  d3 {[%clk 0:00:02]} 37. c8=Q {[%clk 0:01:01]}  Rxc8 {[%clk 0:00:02]} 38. Bxc8 {[%clk 0:01:01]}  Qd5 {[%clk 0:00:02]} 39. Rcd1 {[%clk 0:01:00]}  Bc6 {[%clk 0:00:01]} 40. Re3 {[%clk 0:00:59]} 1-0


[Site "https://www.chess.com"]

[Event "Titled Tuesday Blitz November 29 Late 2022"]
[White "Cardoso Cardoso, Jose Gabriel"]
[Black "Zanette, Edgard Vinicius"]
[WhiteFideId "4430492"]
[BlackFideId "2109263"]
[WhiteElo "2484"]
[BlackElo "2211"]
[Result "1-0"]
[Round "01"]
[TimeControl "180+1"]
[Date "2022.11.30"]
[WhiteClock "0:00:08"]
[BlackClock "0:00:05"]

1. d4 {[%clk 0:03:00]}  Nf6 {[%clk 0:02:59]} 2. Nc3 {[%clk 0:03:01]}  c5 {[%clk 0:02:56]} 3. d5 {[%clk 0:03:01]}  e6 {[%clk 0:02:56]} 4. e4 {[%clk 0:03:01]}  d6 {[%clk 0:02:56]} 5. Bb5+ {[%clk 0:02:57]}  Bd7 {[%clk 0:02:48]} 6. a4 {[%clk 0:02:57]}  a6 {[%clk 0:02:47]} 7. Be2 {[%clk 0:02:56]}  exd5 {[%clk 0:02:35]} 8. exd5 {[%clk 0:02:57]}  Be7 {[%clk 0:02:35]} 9. Nf3 {[%clk 0:02:57]}  O-O {[%clk 0:02:36]} 10. Nd2 {[%clk 0:02:57]}  Bf5 {[%clk 0:02:29]} 11. Nc4 {[%clk 0:02:54]}  Nbd7 {[%clk 0:02:26]} 12. O-O {[%clk 0:02:53]}  b6 {[%clk 0:02:18]} 13. Bf4 {[%clk 0:02:50]}  Qc7 {[%clk 0:02:10]} 14. h3 {[%clk 0:02:36]}  h6 {[%clk 0:02:07]} 15. Re1 {[%clk 0:02:23]}  Rfe8 {[%clk 0:02:06]} 16. Bd3 {[%clk 0:02:22]}  Bxd3 {[%clk 0:02:04]} 17. Qxd3 {[%clk 0:02:23]}  Bf8 {[%clk 0:02:03]} 18. Qf3 {[%clk 0:02:16]}  Rxe1+ {[%clk 0:01:53]} 19. Rxe1 {[%clk 0:02:14]}  Re8 {[%clk 0:01:53]} 20. Rxe8 {[%clk 0:02:13]}  Nxe8 {[%clk 0:01:53]} 21. Qd3 {[%clk 0:02:09]}  Nef6 {[%clk 0:01:33]} 22. Ne3 {[%clk 0:02:06]}  Qb7 {[%clk 0:01:07]} 23. Nf5 {[%clk 0:02:05]}  Ne8 {[%clk 0:00:58]} 24. Ne4 {[%clk 0:02:01]}  Ndf6 {[%clk 0:00:42]} 25. c4 {[%clk 0:01:15]}  Nxe4 {[%clk 0:00:38]} 26. Qxe4 {[%clk 0:01:15]}  Qd7 {[%clk 0:00:31]} 27. b3 {[%clk 0:01:10]}  b5 {[%clk 0:00:27]} 28. cxb5 {[%clk 0:00:49]}  axb5 {[%clk 0:00:27]} 29. a5 {[%clk 0:00:50]}  Nc7 {[%clk 0:00:16]} 30. g4 {[%clk 0:00:46]}  b4 {[%clk 0:00:15]} 31. Qc4 {[%clk 0:00:44]}  Kh7 {[%clk 0:00:09]} 32. a6 {[%clk 0:00:43]}  g6 {[%clk 0:00:09]} 33. Ne3 {[%clk 0:00:42]}  Qc8 {[%clk 0:00:09]} 34. a7 {[%clk 0:00:38]}  Qb7 {[%clk 0:00:09]} 35. Qe4 {[%clk 0:00:30]}  Qxa7 {[%clk 0:00:08]} 36. Nc4 {[%clk 0:00:31]}  Qa6 {[%clk 0:00:08]} 37. h4 {[%clk 0:00:29]}  Qa1+ {[%clk 0:00:07]} 38. Kg2 {[%clk 0:00:28]}  Qf6 {[%clk 0:00:07]} 39. h5 {[%clk 0:00:26]}  Qd4 {[%clk 0:00:06]} 40. Qxd4 {[%clk 0:00:15]}  cxd4 {[%clk 0:00:05]} 41. Nxd6 {[%clk 0:00:13]}  Bxd6 {[%clk 0:00:05]} 42. Bxd6 {[%clk 0:00:14]}  Nxd5 {[%clk 0:00:06]} 43. Kf3 {[%clk 0:00:14]}  gxh5 {[%clk 0:00:06]} 44. gxh5 {[%clk 0:00:14]}  f5 {[%clk 0:00:05]} 45. Ke2 {[%clk 0:00:13]}  Kg7 {[%clk 0:00:06]} 46. Kd3 {[%clk 0:00:11]}  Kf6 {[%clk 0:00:06]} 47. Kxd4 {[%clk 0:00:11]}  Ke6 {[%clk 0:00:06]} 48. Bf8 {[%clk 0:00:12]}  Nf4 {[%clk 0:00:06]} 49. Bxb4 {[%clk 0:00:09]}  Nxh5 {[%clk 0:00:06]} 50. Bf8 {[%clk 0:00:10]}  Nf4 {[%clk 0:00:06]} 51. Bxh6 {[%clk 0:00:10]}  Nd5 {[%clk 0:00:06]} 52. Kc5 {[%clk 0:00:09]}  Ke5 {[%clk 0:00:05]} 53. b4 {[%clk 0:00:10]}  Ke4 {[%clk 0:00:05]} 54. b5 {[%clk 0:00:10]}  f4 {[%clk 0:00:05]} 55. Bg7 {[%clk 0:00:06]}  Nc7 {[%clk 0:00:04]} 56. b6 {[%clk 0:00:04]}  Ne6+ {[%clk 0:00:04]} 57. Kc6 {[%clk 0:00:04]}  Nxg7 {[%clk 0:00:04]} 58. b7 {[%clk 0:00:04]}  Ne6 {[%clk 0:00:05]} 59. b8=Q {[%clk 0:00:05]}  Nd4+ {[%clk 0:00:05]} 60. Kc5 {[%clk 0:00:04]}  Ne2 {[%clk 0:00:05]} 61. Qb3 {[%clk 0:00:04]}  Ng1 {[%clk 0:00:01]} 62. Qd1 {[%clk 0:00:04]}  Kf5 {[%clk 0:00:01]} 63. Qxg1 {[%clk 0:00:03]}  Ke4 {[%clk 0:00:01]} 64. Qd1 {[%clk 0:00:03]}  f3 {[%clk 0:00:01]} 65. Qd2 {[%clk 0:00:03]}  Kf5 {[%clk 0:00:01]} 66. Qe3 {[%clk 0:00:03]}  Kg4 {[%clk 0:00:02]} 67. Qe4+ {[%clk 0:00:03]}  Kh3 {[%clk 0:00:03]} 68. Qxf3+ {[%clk 0:00:04]}  Kh2 {[%clk 0:00:03]} 69. Qg4 {[%clk 0:00:04]}  Kh1 {[%clk 0:00:03]} 70. Kd4 {[%clk 0:00:05]}  Kh2 {[%clk 0:00:03]} 71. Ke4 {[%clk 0:00:06]}  Kh1 {[%clk 0:00:04]} 72. Kf3 {[%clk 0:00:07]}  Kh2 {[%clk 0:00:05]} 73. Qg2# {[%clk 0:00:08]} 1-0


[Site "https://www.chess.com"]

[Event "Titled Tuesday Blitz November 29 Late 2022"]
[White "Chernomordik, Pavel"]
[Black "Gareyev, Timur"]
[WhiteFideId "2804530"]
[BlackFideId "14200937"]
[WhiteElo "2192"]
[BlackElo "2552"]
[Result "1-0"]
[Round "01"]
[TimeControl "180+1"]
[Date "2022.11.30"]
[WhiteClock "0:01:26"]
[BlackClock "0:00:47"]

1. e4 {[%clk 0:02:59]}  e5 {[%clk 0:02:55]} 2. Nf3 {[%clk 0:02:58]}  Nc6 {[%clk 0:02:52]} 3. Bb5 {[%clk 0:02:58]}  f5 {[%clk 0:02:50]} 4. d4 {[%clk 0:02:57]}  Nxd4 {[%clk 0:02:50]} 5. Nxd4 {[%clk 0:02:50]}  exd4 {[%clk 0:02:51]} 6. exf5 {[%clk 0:02:42]}  c6 {[%clk 0:02:49]} 7. Qh5+ {[%clk 0:02:32]}  g6 {[%clk 0:02:49]} 8. fxg6 {[%clk 0:02:32]}  Qe7+ {[%clk 0:02:49]} 9. Be2 {[%clk 0:02:23]}  Kd8 {[%clk 0:02:48]} 10. Bg5 {[%clk 0:02:14]}  Nf6 {[%clk 0:02:45]} 11. Qf3 {[%clk 0:02:13]}  Bg7 {[%clk 0:02:39]} 12. O-O {[%clk 0:02:10]}  hxg6 {[%clk 0:02:32]} 13. Nd2 {[%clk 0:02:09]}  Qe5 {[%clk 0:02:29]} 14. Bf4 {[%clk 0:02:07]}  Qh5 {[%clk 0:02:26]} 15. Qg3 {[%clk 0:02:04]}  Qf5 {[%clk 0:01:49]} 16. Bc7+ {[%clk 0:01:59]}  Ke7 {[%clk 0:01:39]} 17. Bd3 {[%clk 0:01:54]}  Qg4 {[%clk 0:01:31]} 18. Bxg6 {[%clk 0:01:40]}  Qxg3 {[%clk 0:01:25]} 19. Rae1+ {[%clk 0:01:36]}  Qe3 {[%clk 0:01:14]} 20. fxe3 {[%clk 0:01:35]}  d6 {[%clk 0:00:54]} 21. exd4+ {[%clk 0:01:31]}  Kd7 {[%clk 0:00:51]} 22. Ba5 {[%clk 0:01:31]}  Nd5 {[%clk 0:00:47]} 23. Bf5# {[%clk 0:01:26]} 1-0


[Site "https://www.chess.com"]

[Event "Titled Tuesday Blitz November 29 Late 2022"]
[White "Delorme, Alban"]
[Black "Boyer, Mahel"]
[WhiteFideId "623636"]
[BlackFideId "45102422"]
[WhiteElo "2197"]
[BlackElo "2454"]
[Result "0-1"]
[Round "01"]
[TimeControl "180+1"]
[Date "2022.11.30"]
[WhiteClock "0:01:38"]
[BlackClock "0:01:24"]

1. d4 {[%clk 0:02:59]}  e5 {[%clk 0:02:59]} 2. dxe5 {[%clk 0:02:57]}  Nc6 {[%clk 0:02:59]} 3. Nf3 {[%clk 0:02:57]}  d6 {[%clk 0:02:59]} 4. e4 {[%clk 0:02:55]}  Bg4 {[%clk 0:02:58]} 5. Be2 {[%clk 0:02:50]}  dxe5 {[%clk 0:02:55]} 6. O-O {[%clk 0:02:46]}  Nf6 {[%clk 0:02:47]} 7. c3 {[%clk 0:02:39]}  Qxd1 {[%clk 0:02:44]} 8. Rxd1 {[%clk 0:02:38]}  Nxe4 {[%clk 0:02:44]} 9. Be3 {[%clk 0:02:36]}  Bc5 {[%clk 0:02:42]} 10. Bxc5 {[%clk 0:02:35]}  Nxc5 {[%clk 0:02:43]} 11. Nbd2 {[%clk 0:02:34]}  f6 {[%clk 0:02:42]} 12. Nb3 {[%clk 0:02:32]}  Nxb3 {[%clk 0:02:41]} 13. axb3 {[%clk 0:02:33]}  a5 {[%clk 0:02:41]} 14. Bb5 {[%clk 0:02:30]}  Ke7 {[%clk 0:02:37]} 15. Bxc6 {[%clk 0:02:29]}  bxc6 {[%clk 0:02:38]} 16. Ra4 {[%clk 0:02:27]}  Bxf3 {[%clk 0:02:37]} 17. gxf3 {[%clk 0:02:27]}  Rhb8 {[%clk 0:02:34]} 18. Rc4 {[%clk 0:02:14]}  Ra6 {[%clk 0:02:30]} 19. b4 {[%clk 0:02:14]}  axb4 {[%clk 0:02:27]} 20. cxb4 {[%clk 0:02:15]}  Rab6 {[%clk 0:02:27]} 21. Rdc1 {[%clk 0:02:11]}  Kd7 {[%clk 0:02:22]} 22. Rd1+ {[%clk 0:02:11]}  Kc8 {[%clk 0:02:16]} 23. Rdc1 {[%clk 0:02:10]}  Rxb4 {[%clk 0:02:08]} 24. Rxc6 {[%clk 0:02:10]}  R8b7 {[%clk 0:02:09]} 25. R1c2 {[%clk 0:02:09]}  Rxb2 {[%clk 0:02:01]} 26. Rxc7+ {[%clk 0:02:08]}  Rxc7 {[%clk 0:02:02]} 27. Rxb2 {[%clk 0:02:09]}  Kd7 {[%clk 0:02:03]} 28. Kg2 {[%clk 0:02:09]}  Ke6 {[%clk 0:02:03]} 29. Rb6+ {[%clk 0:02:07]}  Kf5 {[%clk 0:02:04]} 30. Kg3 {[%clk 0:02:08]}  Rc3 {[%clk 0:01:56]} 31. Rb5 {[%clk 0:02:05]}  g5 {[%clk 0:01:54]} 32. Ra5 {[%clk 0:02:05]}  h5 {[%clk 0:01:52]} 33. Kg2 {[%clk 0:02:03]}  Kf4 {[%clk 0:01:47]} 34. Ra4+ {[%clk 0:02:03]}  Kf5 {[%clk 0:01:47]} 35. Ra5 {[%clk 0:02:04]}  Rc4 {[%clk 0:01:46]} 36. Rb5 {[%clk 0:02:01]}  Ra4 {[%clk 0:01:46]} 37. Rc5 {[%clk 0:02:01]}  Ra6 {[%clk 0:01:45]} 38. Rc4 {[%clk 0:02:00]}  Ra5 {[%clk 0:01:45]} 39. Rb4 {[%clk 0:02:00]}  Rc5 {[%clk 0:01:44]} 40. Ra4 {[%clk 0:02:00]}  Rd5 {[%clk 0:01:44]} 41. Rb4 {[%clk 0:02:00]}  Rd4 {[%clk 0:01:44]} 42. Rb6 {[%clk 0:01:58]}  Rd3 {[%clk 0:01:35]} 43. Rb4 {[%clk 0:01:56]}  g4 {[%clk 0:01:34]} 44. fxg4+ {[%clk 0:01:56]}  hxg4 {[%clk 0:01:34]} 45. Ra4 {[%clk 0:01:54]}  Kg5 {[%clk 0:01:32]} 46. Ra5 {[%clk 0:01:54]}  Rb3 {[%clk 0:01:29]} 47. Rc5 {[%clk 0:01:53]}  Kf4 {[%clk 0:01:27]} 48. Rc4+ {[%clk 0:01:52]}  e4 {[%clk 0:01:27]} 49. Ra4 {[%clk 0:01:52]}  Rb2 {[%clk 0:01:27]} 50. Rc4 {[%clk 0:01:51]}  f5 {[%clk 0:01:27]} 51. Ra4 {[%clk 0:01:51]}  Kg5 {[%clk 0:01:27]} 52. Ra3 {[%clk 0:01:50]}  Kf4 {[%clk 0:01:26]} 53. Ra4 {[%clk 0:01:50]}  Kg5 {[%clk 0:01:26]} 54. Ra3 {[%clk 0:01:50]}  f4 {[%clk 0:01:26]} 55. Ra4 {[%clk 0:01:49]}  e3 {[%clk 0:01:25]} 56. Ra5+ {[%clk 0:01:38]}  Kh4 {[%clk 0:01:24]} 0-1


[Site "https://www.chess.com"]

[Event "Titled Tuesday Blitz November 29 Late 2022"]
[White "Di Berardino, Diego Rafael"]
[Black "Zeman, Matyas"]
[WhiteFideId "2105446"]
[BlackFideId "364398"]
[WhiteElo "2442"]
[BlackElo "2254"]
[Result "0-1"]
[Round "01"]
[TimeControl "180+1"]
[Date "2022.11.30"]
[WhiteClock "0:00:11"]
[BlackClock "0:00:32"]

1. e4 {[%clk 0:03:00]}  c6 {[%clk 0:02:57]} 2. d4 {[%clk 0:03:00]}  d5 {[%clk 0:02:57]} 3. exd5 {[%clk 0:03:00]}  cxd5 {[%clk 0:02:57]} 4. c4 {[%clk 0:03:00]}  Nf6 {[%clk 0:02:56]} 5. Nc3 {[%clk 0:03:01]}  Be6 {[%clk 0:02:57]} 6. Bg5 {[%clk 0:02:55]}  Nc6 {[%clk 0:02:53]} 7. Be2 {[%clk 0:02:54]}  Qa5 {[%clk 0:02:34]} 8. Bf3 {[%clk 0:02:51]}  Rd8 {[%clk 0:02:27]} 9. Bd2 {[%clk 0:02:31]}  Qa6 {[%clk 0:02:07]} 10. cxd5 {[%clk 0:02:27]}  Nxd5 {[%clk 0:02:08]} 11. Nge2 {[%clk 0:02:26]}  g6 {[%clk 0:01:57]} 12. O-O {[%clk 0:02:20]}  Bg7 {[%clk 0:01:58]} 13. Bxd5 {[%clk 0:02:10]}  Bxd5 {[%clk 0:01:57]} 14. Nf4 {[%clk 0:02:11]}  Bc4 {[%clk 0:01:53]} 15. d5 {[%clk 0:01:58]}  Bxf1 {[%clk 0:01:52]} 16. dxc6 {[%clk 0:01:56]}  bxc6 {[%clk 0:01:40]} 17. Ne4 {[%clk 0:01:30]}  Bc4 {[%clk 0:01:15]} 18. Qc2 {[%clk 0:01:17]}  O-O {[%clk 0:01:06]} 19. Rc1 {[%clk 0:01:17]}  Bd3 {[%clk 0:01:04]} 20. Nxd3 {[%clk 0:01:16]}  Qxd3 {[%clk 0:01:05]} 21. Qxd3 {[%clk 0:00:40]}  Rxd3 {[%clk 0:01:06]} 22. Be3 {[%clk 0:00:40]}  Bxb2 {[%clk 0:00:56]} 23. Rb1 {[%clk 0:00:40]}  Bd4 {[%clk 0:00:56]} 24. Bh6 {[%clk 0:00:40]}  Rd8 {[%clk 0:00:49]} 25. g3 {[%clk 0:00:41]}  Bg7 {[%clk 0:00:47]} 26. Bxg7 {[%clk 0:00:27]}  Rd1+ {[%clk 0:00:46]} 27. Rxd1 {[%clk 0:00:26]}  Rxd1+ {[%clk 0:00:47]} 28. Kg2 {[%clk 0:00:26]}  Kxg7 {[%clk 0:00:48]} 29. Nc3 {[%clk 0:00:26]}  Rc1 {[%clk 0:00:45]} 30. Ne4 {[%clk 0:00:23]}  f5 {[%clk 0:00:38]} 31. Ng5 {[%clk 0:00:22]}  Ra1 {[%clk 0:00:37]} 32. Ne6+ {[%clk 0:00:21]}  Kf6 {[%clk 0:00:37]} 33. Nd4 {[%clk 0:00:21]}  Rxa2 {[%clk 0:00:37]} 34. Nxc6 {[%clk 0:00:21]}  a5 {[%clk 0:00:37]} 35. Nd4 {[%clk 0:00:20]}  a4 {[%clk 0:00:36]} 36. Nb5 {[%clk 0:00:19]}  Rb2 {[%clk 0:00:37]} 37. Na3 {[%clk 0:00:19]}  Rb3 {[%clk 0:00:37]} 38. Nc4 {[%clk 0:00:19]}  a3 {[%clk 0:00:38]} 39. Nd2 {[%clk 0:00:20]}  Rb2 {[%clk 0:00:37]} 40. Nc4 {[%clk 0:00:20]}  a2 {[%clk 0:00:37]} 41. Nxb2 {[%clk 0:00:20]}  a1=Q {[%clk 0:00:38]} 42. Nd3 {[%clk 0:00:20]}  Qa8+ {[%clk 0:00:37]} 43. Kh3 {[%clk 0:00:20]}  e5 {[%clk 0:00:38]} 44. Nc5 {[%clk 0:00:18]}  g5 {[%clk 0:00:35]} 45. f3 {[%clk 0:00:16]}  Qxf3 {[%clk 0:00:33]} 46. Ne4+ {[%clk 0:00:11]}  Qxe4 {[%clk 0:00:32]} 0-1


[Site "https://www.chess.com"]

[Event "Titled Tuesday Blitz November 29 Late 2022"]
[White "Dylag, Emilia"]
[Black "Fernandez De La Vara, Arnaldo"]
[WhiteFideId "21805172"]
[BlackFideId "3518388"]
[WhiteElo "1878"]
[BlackElo "2387"]
[Result "0-1"]
[Round "01"]
[TimeControl "180+1"]
[Date "2022.11.30"]
[WhiteClock "0:00:01"]
[BlackClock "0:00:19"]

1. d4 {[%clk 0:02:58]}  c5 {[%clk 0:03:00]} 2. d5 {[%clk 0:02:58]}  Nf6 {[%clk 0:03:01]} 3. c4 {[%clk 0:02:58]}  b5 {[%clk 0:03:02]} 4. Qc2 {[%clk 0:02:57]}  bxc4 {[%clk 0:02:52]} 5. e4 {[%clk 0:02:56]}  e6 {[%clk 0:02:52]} 6. Bxc4 {[%clk 0:02:46]}  d6 {[%clk 0:02:42]} 7. Nf3 {[%clk 0:02:42]}  Be7 {[%clk 0:02:39]} 8. O-O {[%clk 0:02:40]}  exd5 {[%clk 0:02:38]} 9. exd5 {[%clk 0:02:38]}  Nbd7 {[%clk 0:02:38]} 10. Re1 {[%clk 0:02:33]}  Nb6 {[%clk 0:02:25]} 11. Na3 {[%clk 0:02:00]}  O-O {[%clk 0:02:23]} 12. Bg5 {[%clk 0:01:54]}  h6 {[%clk 0:02:20]} 13. Bh4 {[%clk 0:01:53]}  Bg4 {[%clk 0:02:08]} 14. Re3 {[%clk 0:01:30]}  Nfxd5 {[%clk 0:02:01]} 15. Bxe7 {[%clk 0:01:21]}  Nxe3 {[%clk 0:01:57]} 16. Qe4 {[%clk 0:01:11]}  Re8 {[%clk 0:01:42]} 17. fxe3 {[%clk 0:00:31]}  Bxf3 {[%clk 0:01:24]} 18. Bxd8 {[%clk 0:00:19]}  Bxe4 {[%clk 0:01:19]} 19. Bc7 {[%clk 0:00:17]}  Nxc4 {[%clk 0:01:09]} 20. Nxc4 {[%clk 0:00:18]}  d5 {[%clk 0:01:04]} 21. Na5 {[%clk 0:00:14]}  Re6 {[%clk 0:00:38]} 22. Nb3 {[%clk 0:00:12]}  Rae8 {[%clk 0:00:36]} 23. Nxc5 {[%clk 0:00:08]}  Rc6 {[%clk 0:00:36]} 24. Nxe4 {[%clk 0:00:08]}  Rxc7 {[%clk 0:00:36]} 25. Nc3 {[%clk 0:00:06]}  Rc5 {[%clk 0:00:24]} 26. Kf2 {[%clk 0:00:03]}  Rb8 {[%clk 0:00:24]} 27. Na4 {[%clk 0:00:01]}  Rc2+ {[%clk 0:00:24]} 28. Kf3 {[%clk 0:00:01]}  d4 {[%clk 0:00:20]} 29. b3 {[%clk 0:00:01]}  dxe3 {[%clk 0:00:19]} 0-1


[Site "https://www.chess.com"]

[Event "Titled Tuesday Blitz November 29 Late 2022"]
[White "Dzierzak, Radoslaw"]
[Black "Wirig, Anthony"]
[WhiteFideId "1161407"]
[BlackFideId "615013"]
[WhiteElo "2493"]
[BlackElo "2910"]
[Result "0-1"]
[Round "01"]
[TimeControl "180+1"]
[Date "2022.11.30"]
[WhiteClock "0:00:07"]
[BlackClock "0:00:15"]

1. e4 {[%clk 0:03:00]}  c5 {[%clk 0:02:59]} 2. Nf3 {[%clk 0:03:01]}  e6 {[%clk 0:02:59]} 3. d4 {[%clk 0:03:02]}  cxd4 {[%clk 0:03:00]} 4. Nxd4 {[%clk 0:03:02]}  Nf6 {[%clk 0:03:00]} 5. Nc3 {[%clk 0:03:03]}  Nc6 {[%clk 0:03:00]} 6. g3 {[%clk 0:03:03]}  Bb4 {[%clk 0:02:53]} 7. Bg2 {[%clk 0:03:02]}  O-O {[%clk 0:02:53]} 8. O-O {[%clk 0:03:02]}  d6 {[%clk 0:02:49]} 9. Nb3 {[%clk 0:02:42]}  e5 {[%clk 0:02:25]} 10. Ne2 {[%clk 0:02:15]}  h6 {[%clk 0:02:19]} 11. a3 {[%clk 0:02:09]}  Bc5 {[%clk 0:02:16]} 12. Nxc5 {[%clk 0:02:07]}  dxc5 {[%clk 0:02:17]} 13. h3 {[%clk 0:02:03]}  b6 {[%clk 0:02:08]} 14. c3 {[%clk 0:01:56]}  Be6 {[%clk 0:01:56]} 15. b4 {[%clk 0:01:42]}  Bc4 {[%clk 0:01:47]} 16. Qxd8 {[%clk 0:01:26]}  Rfxd8 {[%clk 0:01:43]} 17. Re1 {[%clk 0:01:24]}  Bd3 {[%clk 0:01:22]} 18. f3 {[%clk 0:01:23]}  cxb4 {[%clk 0:00:49]} 19. axb4 {[%clk 0:01:23]}  a5 {[%clk 0:00:47]} 20. Be3 {[%clk 0:01:16]}  Rdb8 {[%clk 0:00:36]} 21. Nc1 {[%clk 0:01:06]}  Bc4 {[%clk 0:00:36]} 22. Bf1 {[%clk 0:00:57]}  Bxf1 {[%clk 0:00:33]} 23. Kxf1 {[%clk 0:00:57]}  axb4 {[%clk 0:00:33]} 24. Rxa8 {[%clk 0:00:57]}  Rxa8 {[%clk 0:00:34]} 25. cxb4 {[%clk 0:00:57]}  Nxb4 {[%clk 0:00:28]} 26. Bxb6 {[%clk 0:00:57]}  Rc8 {[%clk 0:00:25]} 27. Be3 {[%clk 0:00:17]}  Nc2 {[%clk 0:00:20]} 28. Ke2 {[%clk 0:00:09]}  Nxe1 {[%clk 0:00:20]} 29. Kxe1 {[%clk 0:00:10]}  Rc3 {[%clk 0:00:17]} 30. Ke2 {[%clk 0:00:09]}  Nh5 {[%clk 0:00:15]} 31. Bf2 {[%clk 0:00:07]}  Rxc1 {[%clk 0:00:15]} 0-1


[Site "https://www.chess.com"]

[Event "Titled Tuesday Blitz November 29 Late 2022"]
[White "Forgacs, Attila Jr."]
[Black "Zajic, Milan"]
[WhiteFideId "773654"]
[BlackFideId "912336"]
[WhiteElo "2168"]
[BlackElo "2445"]
[Result "1-0"]
[Round "01"]
[TimeControl "180+1"]
[Date "2022.11.30"]
[WhiteClock "0:00:07"]
[BlackClock "0:00:03"]

1. e4 {[%clk 0:03:00]}  c5 {[%clk 0:02:57]} 2. d3 {[%clk 0:02:59]}  g6 {[%clk 0:02:55]} 3. g3 {[%clk 0:03:00]}  Bg7 {[%clk 0:02:54]} 4. Bg2 {[%clk 0:03:00]}  Nc6 {[%clk 0:02:54]} 5. f4 {[%clk 0:03:01]}  d6 {[%clk 0:02:54]} 6. Nf3 {[%clk 0:03:01]}  e5 {[%clk 0:02:54]} 7. Nc3 {[%clk 0:03:01]}  Nge7 {[%clk 0:02:54]} 8. O-O {[%clk 0:03:00]}  exf4 {[%clk 0:02:55]} 9. Bxf4 {[%clk 0:03:00]}  O-O {[%clk 0:02:55]} 10. Qd2 {[%clk 0:02:59]}  d5 {[%clk 0:02:55]} 11. exd5 {[%clk 0:02:58]}  Nxd5 {[%clk 0:02:56]} 12. Nxd5 {[%clk 0:02:58]}  Qxd5 {[%clk 0:02:56]} 13. Bh6 {[%clk 0:02:55]}  Bg4 {[%clk 0:02:45]} 14. Bxg7 {[%clk 0:02:54]}  Kxg7 {[%clk 0:02:44]} 15. Rae1 {[%clk 0:02:52]}  Rae8 {[%clk 0:02:43]} 16. Qc3+ {[%clk 0:02:36]}  Kg8 {[%clk 0:02:42]} 17. Ne5 {[%clk 0:02:29]}  Qxe5 {[%clk 0:02:27]} 18. Rxe5 {[%clk 0:02:28]}  Nxe5 {[%clk 0:02:28]} 19. Qxc5 {[%clk 0:02:22]}  b6 {[%clk 0:02:26]} 20. Qc7 {[%clk 0:02:16]}  Be2 {[%clk 0:02:16]} 21. Re1 {[%clk 0:02:07]}  Nf3+ {[%clk 0:02:13]} 22. Bxf3 {[%clk 0:02:06]}  Bxf3 {[%clk 0:02:14]} 23. Rxe8 {[%clk 0:02:02]}  Rxe8 {[%clk 0:02:14]} 24. Qxa7 {[%clk 0:01:53]}  Re2 {[%clk 0:01:59]} 25. Qxb6 {[%clk 0:01:45]}  Rg2+ {[%clk 0:01:49]} 26. Kf1 {[%clk 0:01:44]}  Rxc2 {[%clk 0:01:50]} 27. Qd8+ {[%clk 0:01:42]}  Kg7 {[%clk 0:01:49]} 28. Qd4+ {[%clk 0:01:43]}  Kg8 {[%clk 0:01:49]} 29. a4 {[%clk 0:01:37]}  g5 {[%clk 0:01:38]} 30. h3 {[%clk 0:01:31]}  h5 {[%clk 0:01:38]} 31. g4 {[%clk 0:01:28]}  Bg2+ {[%clk 0:01:26]} 32. Kg1 {[%clk 0:01:25]}  Bxh3 {[%clk 0:01:15]} 33. Qd8+ {[%clk 0:01:21]}  Kh7 {[%clk 0:01:15]} 34. Qxg5 {[%clk 0:01:20]}  hxg4 {[%clk 0:01:11]} 35. Qh5+ {[%clk 0:01:18]}  Kg7 {[%clk 0:01:10]} 36. Qe5+ {[%clk 0:01:18]}  Kg6 {[%clk 0:01:10]} 37. a5 {[%clk 0:01:12]}  Rg2+ {[%clk 0:01:06]} 38. Kh1 {[%clk 0:01:12]}  f5 {[%clk 0:01:03]} 39. a6 {[%clk 0:01:01]}  g3 {[%clk 0:01:04]} 40. Qe6+ {[%clk 0:00:54]}  Kg5 {[%clk 0:00:58]} 41. Qg8+ {[%clk 0:00:52]}  Kf4 {[%clk 0:00:51]} 42. Qc4+ {[%clk 0:00:49]}  Kf3 {[%clk 0:00:48]} 43. Qd5+ {[%clk 0:00:47]}  Kf2 {[%clk 0:00:46]} 44. Qc5+ {[%clk 0:00:46]}  Kf1 {[%clk 0:00:38]} 45. Qc1+ {[%clk 0:00:45]}  Kf2 {[%clk 0:00:38]} 46. Qf4+ {[%clk 0:00:37]}  Ke2 {[%clk 0:00:30]} 47. Qe5+ {[%clk 0:00:28]}  Kf1 {[%clk 0:00:27]} 48. Qf4+ {[%clk 0:00:21]}  Ke2 {[%clk 0:00:21]} 49. Qe5+ {[%clk 0:00:15]}  Kf3 {[%clk 0:00:19]} 50. Qd5+ {[%clk 0:00:12]}  Kf2 {[%clk 0:00:19]} 51. Qc5+ {[%clk 0:00:12]}  Kf1 {[%clk 0:00:13]} 52. Qc1+ {[%clk 0:00:13]}  Ke2 {[%clk 0:00:12]} 53. Qc2+ {[%clk 0:00:12]}  Kf3 {[%clk 0:00:13]} 54. Qd1+ {[%clk 0:00:12]}  Re2 {[%clk 0:00:09]} 55. a7 {[%clk 0:00:11]}  Ke3 {[%clk 0:00:06]} 56. Qxe2+ {[%clk 0:00:10]}  Kxe2 {[%clk 0:00:04]} 57. a8=Q {[%clk 0:00:10]}  f4 {[%clk 0:00:03]} 58. Qe4+ {[%clk 0:00:07]}  Kd1 {[%clk 0:00:03]} 59. Qxf4 {[%clk 0:00:07]}  g2+ {[%clk 0:00:04]} 60. Kg1 {[%clk 0:00:07]}  Kc2 {[%clk 0:00:03]} 61. d4 {[%clk 0:00:07]} 1-0


[Site "https://www.chess.com"]